Cogmind - Beta 16 @@@ ROGUE MODE // 2025.11.15 @ 01:47:15 Player: ChromeKnight Result: Destroyed by Y-54 Guardian with Flak Gun Performance ------------- Evolutions (0) 0 Regions Visited (3) 600 Robots Destroyed (13) 65 Value Destroyed (371) 371 Prototype IDs (0) 0 Alien Tech Used (0) 0 Bonus (-23) -23 TOTAL SCORE: 1013 Bonus ------- Friendly Fire -23 Cogmind --------- Core Integrity 0/250 Matter 231/300 Energy 96/100 System Corruption 0% Temperature Cool (14) Movement Treading (160) Location -7/Recycling Parts ------- > --- POWER (1) -------- (None) > --- PROPULSION (2) --- Light Treads Light Treads > --- UTILITY (2) ------ Large Storage Unit > --- WEAPON (2) ------- Subdweller Laser Subdweller Laser > --- INVENTORY (15) --- Light Treads Light Treads Disposable Heat Sink Small Storage Unit Scrap Shield Medium Laser Gatling Laser Flak Gun Flamer Piercing Trap Peak State ------------ > --- POWER ------------ Light Ion Engine > --- PROPULSION ------- Light Treads Light Treads > --- UTILITY ---------- Large Storage Unit > --- WEAPON ----------- Medium Laser Subdweller Shrapnel Launcher > --- INVENTORY -------- Light Treads Light Treads Disposable Heat Sink Small Storage Unit Scrap Shield Riot Gun Medium Laser Subdweller Laser Subdweller Laser Flamer Piercing Trap [Rating: 9] Favorites ----------- Power Light Ion Engine Engine Light Ion Engine Propulsion Light Treads Treads Light Treads Utility Large Storage Unit Storage Large Storage Unit Weapon Medium Laser Energy Gun Medium Laser Launcher Subdweller Shrapnel Launcher Build | -11 -10 -10 -7 ------- Run | Yrd Mat Sub Rec Slots Evolved . | . . . . Power . | . . . . Propulsion . | . . . . Utility . | . . . . Weapon . | . . . . Parts Attached 13 | 6 1 4 2 Power 1 | 1 . . . Engine 1 | 1 . . . Core . | . . . . Reactor . | . . . . Propulsion 4 | 2 . 1 1 Treads 4 | 2 . 1 1 Leg . | . . . . Wheel . | . . . . Hover . | . . . . Flight . | . . . . Utility 2 | 1 1 . . Device . | . . . . Storage 2 | 1 1 . . Processor . | . . . . Hackware . | . . . . Protection . | . . . . Artifact . | . . . . Weapon 6 | 2 . 3 1 Energy Gun 5 | 2 . 2 1 Energy Cannon . | . . . . Ballistic Gun . | . . . . Ballistic Cannon . | . . . . Launcher 1 | . . 1 . Special Weapon . | . . . . Impact Weapon . | . . . . Slashing Weapon . | . . . . Piercing Weapon . | . . . . Special Melee Weapon . | . . . . Unidentified Prototypes . | . . . . Parts Lost 6 | . . 4 2 Power 1 | . . 1 . Propulsion 2 | . . 1 1 Utility . | . . . . Weapon 3 | . . 2 1 Highest Loss Streak 2 | . . 2 2 To Critical Strikes . | . . . . Average Backups 6 | . 1 6 8 Power . | . . . . Propulsion 1 | . . 1 1 Utility 1 | . . 1 3 Weapon 2 | . . 3 3 Tool/Special . | . . . . Unused Backups 7 | . . . 7 Power . | . . . . Propulsion 2 | . . . 2 Utility 2 | . . . 2 Weapon 3 | . . . 3 Tool/Special . | . . . . Average Slot Usage (%) 81 | . 85 82 70 Engine 10 | . 14 12 . Treads 27 | . 28 27 27 Storage 14 | . 14 14 14 Energy Gun 20 | . 28 17 28 Launcher 7 | . . 10 . Peak Build Rating 9 | 6 7 9 9 Average Rating 7 | 4 6 7 8 On Entrance 4 | . 6 6 7 Avg Prop Armor Cover (%) . | . . . . Naked Turns . | . . . . Heaviest Build 33 | 12 27 33 28 Greatest Support 40 | 40 40 40 40 Greatest Overweight (x) 1 | . . 1 1 Average Overweight (x) . | . . . . Largest Inventory Capacity 15 | 8 15 15 15 Average Capacity 14 | 6 11 15 15 Most Carried 12 | . 2 12 11 Average Carried 7 | . 1 7 10 Final Capacity 15 | 8 15 15 15 Final Carried 11 | . 2 9 11 Class Distribution -------------------- 100% | Mutant Dominant Class ---------------- Mutant | -10/Materials Mutant | -10/Subcaves Mutant | -7/Recycling Resources | -11 -10 -10 -7 ----------- Run | Yrd Mat Sub Rec Matter Collected 509 | 191 . 257 61 Remotely . | . . . . Salvage Created 242 | . 23 158 61 Parts 22 | . 1 16 5 Haulers Intercepted . | . . . . Recyclers Shooed . | . . . . Parts Field Recycled . | . . . . Retrieved Matter . | . . . . Parts Self-Destructed 7 | . . 7 . Prevented . | . . . . Parts Restored . | . . . . Kills | -11 -10 -10 -7 ------- Run | Yrd Mat Sub Rec Combat Hostiles Destroyed 10 | . . 9 1 Guns 2 | . . 1 1 AOE 8 | . . 8 . Classes Destroyed 6 | . 1 4 1 Turret 2 | . . 2 . Watcher 1 | . 1 . . Swarmer 4 | . . 4 . Grunt 2 | . . 2 . Sentry 1 | . . . 1 Subdweller 3 | . . 3 . Best Kill Streak 4 | . 1 4 1 Combat Bots Only 4 | . . 4 1 Max Kills in Single Turn 2 | . 1 2 1 Gunslinging . | . . . . Exploded 2 | . . 2 . Melee . | . . . . Uniques/NPCs Destroyed . | . . . . Combat | -11 -10 -10 -7 -------- Run | Yrd Mat Sub Rec Hostile Shots Fired 166 | . 10 93 63 Missed 74 | . 2 39 33 Hits 92 | . 8 54 30 Projectile 92 | . 8 54 30 Damage Taken 1009 | . 124 667 218 Core 251 | . 62 136 53 Absorbed by Shields . | . . . . Core Remaining (%) 100 | 100 . . . Volleys Fired 43 | . 8 28 7 Largest 2 | . 2 2 2 Hottest 120 | . 100 110 120 Shots Fired 60 | . 16 32 12 Gun 46 | . 16 18 12 Cannon . | . . . . Launcher 14 | . . 14 . Special . | . . . . Kinetic 14 | . . 14 . Thermal 36 | . 16 8 12 Explosive . | . . . . Electromagnetic 10 | . . 10 . Robot Hit Streak 12 | . 3 12 3 Robot Miss Streak 5 | . 3 4 5 Penetration Max . | . . . . Secondary Targets . | . . . . Shots Hit Robots 35 | . 7 23 5 Core Hits 25 | . 1 21 3 Critical Kills . | . . . . Critical Parts Destroyed . | . . . . Critical Strikes 1 | . . 1 . Burn 1 | . . 1 . Melee Attacks . | . . . . Impact . | . . . . Slashing . | . . . . Piercing . | . . . . Sneak Attacks . | . . . . Combat Hostiles . | . . . . Follow-up Attacks . | . . . . Damage Inflicted 1371 | . 96 1182 93 Guns 409 | . 89 227 93 Cannons . | . . . . Explosions 955 | . . 955 . Melee . | . . . . Ramming 7 | . 7 . . Kinetic 955 | . . 955 . Thermal 268 | . 89 86 93 Explosive . | . . . . Electromagnetic 141 | . . 141 . Impact . | . . . . Slashing . | . . . . Piercing . | . . . . Highest Corruption . | . . . . Average Corruption . | . . . . Corruption Purged . | . . . . Corruption Blocked . | . . . . Overload Shots . | . . . . Overflow Damage 9 | . . 9 . Projectiles . | . . . . Explosions 9 | . . 9 . Melee . | . . . . Knockbacks . | . . . . Impact . | . . . . Kinetic . | . . . . Secondary . | . . . . Self-Inflicted Damage 149 | . . 149 . Shots 5 | . . 5 . Rammed 1 | . 1 . . Targets Rammed 1 | . 1 . . Kicked . | . . . . Crushed . | . . . . Highest Temperature 216 | . 216 10 193 Average Temperature 94 | . 83 9 119 Received Heat Transfer 462 | . 66 312 84 Effects 2 | . 2 . . Interference 2 | . 2 . . Siege Activations . | . . . . Martial Activations . | . . . . Shielding Activations . | . . . . Robots Disrupted . | . . . . Combat Hostiles . | . . . . Robots Corrupted . | . . . . Combat Hostiles . | . . . . Parts Fried . | . . . . Impact Corruptions . | . . . . Robots Melted . | . . . . Combat Hostiles . | . . . . Parts Melted . | . . . . Heat Transferred 619 | . 259 223 137 Parts Sabotaged . | . . . . Parts Stolen . | . . . . Parts Stripped . | . . . . Power Chain Reactions . | . . . . Alert | -11 -10 -10 -7 ------- Run | Yrd Mat Sub Rec Maximum Alert Level 1 | . . . 1 Low Security (%) 66 | 100 100 . 33 Level 1 33 | . . . 66 Level 2 . | . . . . Level 3 . | . . . . Level 4 . | . . . . Level 5 . | . . . . High Security . | . . . . Max Security . | . . . . Peak Influence 262 | . 7 . 262 Initial 262 | . . . 262 Average 107 | . . . 213 Influence Increases 707 | . 7 680 20 Destroy 0b10 Robot/C 180 | . . 160 20 Destroy 0b10 Robot/NC 5 | . 5 . . Destroy Leader 12 | . 2 10 . Lose Combat Pursuer 510 | . . 510 . Influence Decreases 545 | . 7 132 406 Entered New Map 286 | . . . 286 Time Decay 199 | . 7 92 100 Lost Part 60 | . . 40 20 Squads Dispatched 1 | . 1 . . Investigation . | . . . . Extermination . | . . . . Reinforcement 1 | . 1 . . Assault . | . . . . Garrison . | . . . . Intercept . | . . . . Searches Triggered . | . . . . Construction Impeded . | . . . . Haulers Reinforced . | . . . . Active Scanning Responses . | . . . . Cargo Convoy Interrupts . | . . . . Stealth | -11 -10 -10 -7 --------- Run | Yrd Mat Sub Rec Distress Signals 1 | . 1 . . Communications Jammed . | . . . . Distress Signals . | . . . . Times Spotted 41 | . 6 33 2 Peak Tracking Total 3 | . 3 3 1 Tactical Retreats 4 | . . 4 . Traps | -11 -10 -10 -7 ------- Run | Yrd Mat Sub Rec Traps Triggered . | . . . . Indirectly . | . . . . Trap Hack Attempts . | . . . . Triggered . | . . . . Disarmed . | . . . . Reprogrammed . | . . . . Reused . | . . . . Traps Extracted . | . . . . Installed . | . . . . Triggered . | . . . . Most Traps Carried 1 | . . 1 1 Machines | -11 -10 -10 -7 ---------- Run | Yrd Mat Sub Rec Machines Disabled 3 | . . 3 . Max in Single Turn 2 | . . 2 . Machines Repaired . | . . . . Machines Dismantled . | . . . . Machines Sabotaged . | . . . . Overloaded Fab Kills . | . . . . Hacking | -11 -10 -10 -7 --------- Run | Yrd Mat Sub Rec Machines Accessed 2 | . 2 . . Terminals 2 | . 2 . . Fabricators . | . . . . Repair Stations . | . . . . Recycling Units . | . . . . Scanalyzers . | . . . . Garrison Access . | . . . . Total Hacks 4 | . 4 . . Successful 1 | . 1 . . Failed 3 | . 3 . . Catastrophic 1 | . 1 . . Database Lockouts . | . . . . Manual 4 | . 4 . . Terminals 4 | . 4 . . Fabricators . | . . . . Repair Stations . | . . . . Recycling Units . | . . . . Scanalyzers . | . . . . Garrison Access . | . . . . Terminal Hacks 1 | . 1 . . Recall Reinforcements 1 | . 1 . . Fabricator Hacks . | . . . . Repair Station Hacks . | . . . . Recycling Unit Hacks . | . . . . Scanalyzer . | . . . . Garrison Access Hacks . | . . . . Unauthorized Hacks . | . . . . Terminals . | . . . . Fabricators . | . . . . Repair Stations . | . . . . Recycling Units . | . . . . Scanalyzers . | . . . . Garrison Access . | . . . . Data Cores Recovered . | . . . . Used . | . . . . Hacking Detections 1 | . 1 . . Full Trace Events . | . . . . Feedback Events . | . . . . Feedback Blocked . | . . . . Robot Schematics Acquired . | . . . . Robots Built . | . . . . Authchips . | . . . . Time . | . . . . Total Robot Build Rating . | . . . . Part Schematics Acquired . | . . . . Parts Built . | . . . . Authchips . | . . . . Time . | . . . . Total Part Build Rating . | . . . . Part Studies Acquired . | . . . . Parts Repaired . | . . . . Time . | . . . . Parts Recycled . | . . . . Recycled Matter . | . . . . Retrieved Matter . | . . . . Retrieved Components . | . . . . Parts Scanalyzed . | . . . . Part Schematics Acquired . | . . . . Parts Damaged . | . . . . Bothacking | -11 -10 -10 -7 ------------ Run | Yrd Mat Sub Rec Used RIF Installer . | . . . . Robots Hacked . | . . . . Non-combat . | . . . . Combat . | . . . . Robot Hacks Applied . | . . . . Relay Couplers Released . | . . . . Fabnet Peak Effective % . | . . . . Robots Rewired . | . . . . Allies Hacked . | . . . . Hacks Repelled . | . . . . Allies | -11 -10 -10 -7 -------- Run | Yrd Mat Sub Rec Total Allies . | . . . . Largest Group . | . . . . Highest-Rated Group . | . . . . Highest-Rated Ally . | . . . . Total Orders . | . . . . Ally Attacks . | . . . . Total Damage . | . . . . Kills . | . . . . Allies Corrupted . | . . . . Allies Melted . | . . . . Intel | -11 -10 -10 -7 ------- Run | Yrd Mat Sub Rec Active Infowar (turns) . | . . . . Robot Analysis Total . | . . . . Derelict Logs Recovered 1 | . . 1 . Drone Launches . | . . . . Drone Recoveries . | . . . . Exploration | -11 -10 -10 -7 ------------- Run | Yrd Mat Sub Rec Turns Passed 1518 | 69 138 1102 209 Spaces Moved 810 | 41 69 587 113 Core 4 | 4 . . . Treads 806 | 37 69 587 113 Legs . | . . . . Wheels . | . . . . Hover . | . . . . Flight . | . . . . Fastest Speed 50 | 50 160 160 160 Average Speed 160 | 149 160 161 161 Slowest Speed 240 | 160 160 240 240 Overloaded Moves . | . . . . Propulsion Burnouts . | . . . . Robots Hopped . | . . . . Potential Cave-ins . | . . . . Cave-ins Triggered . | . . . . Exploration Rate (%) 21 | 3 15 37 29 Regions Visited 3 Branch Regions 2 Pre-discovered Areas . | . . . . Known Exits Taken . | . . . . Unknown Exits Taken 3 | 1 1 1 . Scrap Searched 3 | . . 3 . Spaces Dug . | . . . . Terrain Destroyed 164 | . . 164 . Melee . | . . . . Projectile . | . . . . AOE 164 | . . 164 . Terrain Rammed . | . . . . Walls Destroyed . | . . . . Machines Disabled . | . . . . Actions | -11 -10 -10 -7 --------- Run | Yrd Mat Sub Rec Total 964 | 46 80 710 128 Wait 86 | . . 83 3 Move 807 | 40 68 586 113 Hop . | . . . . Pick Up 12 | . 1 8 3 Fast Attach 9 | 6 1 1 1 Attach 4 | . . 3 1 Detach 2 | . 1 1 . Swap . | . . . . Drop . | . . . . Fire 43 | . 8 28 7 Melee . | . . . . Ram . | . . . . Kick . | . . . . Crush 1 | . 1 . . Escape Stasis . | . . . . Rewire . | . . . . Trap . | . . . . Miscellaneous . | . . . . Route ------- -11/Scrapyard -10/Materials -10/Subcaves (discovered 2 exits: [*Mat] / [*Rec]) -7/Recycling History --------- Turn | Location | Event 7 | -11/Scrapyard | Discovered new exit (range 15) 70 | -11/Scrapyard | Entered Materials 159 | -10/Materials | Discovered new exit (range 7) 208 | -10/Materials | Entered Subcaves 209 | -10/Subcaves | Approached by a straggling Scientist 215 | -10/Subcaves | Learned 2 Materials zone layouts 317 | -10/Subcaves | Build established: Mutant 686 | -10/Subcaves | Core integrity fell below 50% 1046 | -10/Subcaves | Discovered new exit (range 16) 1184 | -10/Subcaves | Discovered new exit (range 13) 1310 | -10/Subcaves | Entered Recycling 1315 | -7/Recycling | Core integrity fell below 20% 1519 | -7/Recycling | Destroyed by Y-54 Guardian with Flak Gun Last Messages --------------- (Burn). 01270_ Lgt. Treads destroyed. 01271_ Destroyed Autobeam. 01277_ Autobeam Turret destroyed. 01287_ Acquired 8 matter. 01290_ Acquired 7 matter. 01302_ Acquired 18 matter. LOCATION=UNKNOWN GOAL=ESCAPE 01311_ Y-54 Guardian springs to life. 01320_ Med. Laser destroyed. 01320_ Lgt. Treads destroyed. 01331_ Y-54 Guardian destroyed. 01338_ Acquired Lgt. Treads. 01343_ Acquired Flak Gun. 01346_ Acquired Gatling Laser. 01347_ Acquired 61 matter. 01350_ Acquired Lgt. Treads. 01358_ R-06 Scavenger collects Imp. Heat Sink. 01519_ Y-54 Guardian springs to life. Map ----- +----------------------------------------------------+ | ?????????????????????????????????????????????????? | | ?????????????????????????????????????????????????? | | ?????????????????????????????????????????????????? | | ?????????????????????????????????????????????????? | | ?????????????????????????????????????????????????? | | ?????????????????????????????????????????????????? | | ?????????????????????????????????????????????????? | | ?????????????????????????????????????????????????? | | ?????????????????????????????????????????????????? | | ?????????????????????????????????????????????????? | | ?????????????????????????????????????????????????? | | ???????????????????##?##?????????????????????????? | | ??????????????##### ## ##????????????????????????? | | ??????????????# #????????????????????????? | | ??????????????# #??##????????????????????? | | ??????????????# ###Y##???????????????????? | | ??????????????# # ???????????????????? | | ??????????????# # #???????????????????? | | ??????????????# # #???????????????????? | | ??????????????+ # #???????????????????? | | ??????????????# # #???????????????????? | | ??????????????#####+##### #???????????????????? | | ??????????????????# #???# #???????????????????? | | ??????????????????# #???# #???????????????????? | | ??????# ######## ##### ####????????????????? | | ??????# @ +????????????????? | | ????????????#### ##### #????????????????? | | ???????????????# #??????????????????????? | | ???????????????# #??????####????????????? | | ???????????????# r #????? #????????????? | | ?????????####### #?#""" #????????????? | | ???????? #?#""" #????????????? | | ???????? #?#""" #????????????? | | ???????? #?#""" #????????????? | | ????????? """ """ #?#""" #????????????? | | ??????????""" """ #?# #????????????? | | ???????????"" """ ### #????????????? | | ?????????? r + #????????????? | | ????????? ######## #????????????? | | ?????????? ???????# #????????????? | | ?????????? ???????##+######????????????? | | ???????????## ?####### #????????????????? | | ???????????! #????????????????? | | ????????????! #####???####### #????????????????? | | ????????????!???????????????## ##????????????????? | | ?????????????????????????????# #?????????????????? | | ?????????????????????????????# #?????????????????? | | ?????????????????????????????# #????##???????????? | | ?????????????????????????????# #??? #???????????? | | ?????????????????????????????# #??? #???????????? | +----------------------------------------------------+ Best States ------------- Heat Dissipation 25 Energy Generation 10 Energy Capacity 125 Matter Stores 231 Matter Capacity 300 Sight Range 16 Terrain Scan Density 10 Evasion (%) 40 Recoil Reduction 2 Item Schematics ----------------- None Robot Schematics ------------------ None Fabricated ------------ Nothing Repaired ---------- Nothing Studied --------- None Alien Tech Used ----------------- None Achievements -------------- None Challenges ------------ None Game ------ Seed EtherialXenonMace Manual? 0 Play Time 00:06:23 Cumulative 542.3 hours Start 2025.11.15 @ 01:29:21 End 2025.11.15 @ 01:47:15 Sessions 1 Manual Loads 0 Difficulty Rogue Special Mode None Game No. 878 Rogue 723 Adventurer 148 Explorer 7 Win Type - Total 26 Types 20/1/4/1/0/0/0/0/0/0 Lore% 78 Gallery% 80 Achievement% 66 Wizard Run 0 Options --------- Layout 1 ASCII 0 Keyboard 0 Movement Numpad Keybinds 0 Fullscreen 2 Font 24/Smallcaps Map View 50x40 Zoom Use 0% Tactical HUD 1 Map Filters NONE Filters NONE Steam 1 RUN: a2f71aac-9c3d-4cc7-a066-f98e45c8a856